Cogmind - Beta 15 @@@ ROGUE MODE // 2025.09.30 @ 22:05:30 Player: chebyrekser Result: Escaped! Performance ------------- Evolutions (9) 4500 Regions Visited (27) 5400 Robots Destroyed (440) 2200 Value Destroyed (20634) 20634 Prototype IDs (92) 1840 Alien Tech Used (6) 1200 Bonus (11639) 11639 TOTAL SCORE: 47413 Bonus ------- High Alert Combat Kills 2154 Follower Combat Kills 2142 Network Hubs Disabled 200 Registered with UFD 300 Met Optimus in HQ 500 Met Data Miner 300 Met Zhirov 300 Built Enhanced Grunts 300 A7 Reached Mainframe 300 Met R17 at Cetus 500 Met R17 at Research 2000 Win 3000 Friendly Fire -357 Cogmind --------- Core Integrity 1322/1600 Matter 274/300 Energy 248/1615 System Corruption 17% Temperature Cool (36) Movement Hovering (24) Location To Epsilon Eridani Parts ------- > --- POWER (3) -------- Improved Ion Engine Micro Antimatter Reactor Hybrid Graviton Reactor > --- PROPULSION (7) --- Improved Gyrokinetic Inverter Improved Gyrokinetic Inverter Improved Linear Gravjet Improved Linear Gravjet Improved Linear Gravjet Improved Linear Gravjet Improved Linear Gravjet > --- UTILITY (12) ----- Advanced Heat Sink Advanced Sensor Array Advanced Signal Interpreter Improved Weapon Cycler Concept Network Penetrator Concept Navigation Harness > --- WEAPON (4) ------- Improved Potential Cannon Concept XC Strikerail Enhanced Hardcell Cannon > --- INVENTORY (5) ---- High-density Centrium Wheel Concept Chromion Battery (0) Concept NT7 Matterbank (750) Gamma Rifle Improved Proton Missile Launcher Peak State ------------ > --- POWER ------------ Micro Antimatter Reactor Quantum Reactor Quantum Reactor > --- PROPULSION ------- Medium Treads Advanced Medium Treads Armored Heavy Treads High-density Centrium Wheel Improved Gyrokinetic Inverter Improved Gyrokinetic Inverter > --- UTILITY ---------- Advanced Heat Sink Huge Storage Unit Concept Chromion Battery Advanced Signal Interpreter Improved Kinecellerator Improved Weapon Cycler Improved Force Field Concept Network Penetrator Concept Network Penetrator Concept Navigation Harness > --- WEAPON ----------- Enhanced Nova Cannon Concept XC Strikerail Concept XC Strikerail Enhanced Hardcell Cannon > --- INVENTORY -------- Hybrid Graviton Reactor Improved Linear Gravjet Improved Linear Gravjet Improved Linear Gravjet Improved Linear Gravjet Improved Linear Gravjet Improved Linear Gravjet Concept NT7 Matterbank Advanced Sensor Array Concept Weapon Articulator Improved Remote Force Field Advanced Point Defense System Concept Matter Streamer Crosscalibrator Gamma Rifle Gamma Rifle Compact HERF Cannon Compact HERF Cannon Enhanced Nova Cannon Improved Potential Cannon KE Penetrator Enhanced Hardcell Cannon Improved Proton Missile Launcher Long-range Missile Launcher [Rating: 232] Favorites ----------- Power Quantum Reactor Engine Ion Engine Power Core Neutrino Core Reactor Quantum Reactor Propulsion Armored Wheel Treads Light Treads Leg Armored Leg Wheel Armored Wheel Hover Unit Improved Linear Gravjet Utility Huge Storage Unit Device Advanced Sensor Array Storage Huge Storage Unit Processor Advanced Signal Interpreter Hackware Improved Hacking Suite Protection Centrium Medium Armor Plating Weapon Minigun Energy Gun Advanced Variable Charge Gun Energy Cannon Phase Cannon Ballistic Gun Minigun Ballistic Cannon Hardcell Cannon Launcher Improved Proton Missile Launcher Special Weapon Mining Laser Impact Weapon Hammer Slashing Weapon Makeshift Sword Build | -11 -10 -10 -9 -9 -9 -9 -6 -6 -6 -6 -5 -5 -5 -5 -5 -5 -4 -4 -4 -4 -3 -3 -3 -3 -2 -2 -1 ------- Run | Yrd Mat Min Mat Sto Rec Scr Fac Low Low Dat Pro Fac Ext Cet Arc Hub Fac Upp Upp Zhi Pro Res Qua Frg Res Tes Acc Slots Evolved 18 | . . . 2 . . . 6 . . . . 2 . . . . 2 . . . . 2 . . 2 . 2 Power 2 | . . . . . . . . . . . . 1 . . . . . . . . . 1 . . . . . Propulsion 5 | . . . 1 . . . 2 . . . . . . . . . 1 . . . . . . . 1 . . Utility 10 | . . . 1 . . . 3 . . . . 1 . . . . 1 . . . . 1 . . 1 . 2 Weapon 1 | . . . . . . . 1 . . . . . . . . . . . . . . . . . . . . Parts Attached 309 | 9 9 6 35 15 1 7 27 9 6 1 4 13 16 12 8 3 17 7 3 4 5 5 17 28 6 17 19 Power 43 | 2 1 1 5 2 . 1 3 2 1 . 1 2 4 2 1 1 . . . 1 1 3 . 4 1 . 4 Engine 18 | 2 1 1 5 2 . 1 3 . . . . 1 1 . . . . . . . . . . . . . 1 Core 8 | . . . . . . . . 2 1 . . 1 3 1 . . . . . . . . . . . . . Reactor 17 | . . . . . . . . . . . 1 . . 1 1 1 . . . 1 1 3 . 4 1 . 3 Propulsion 79 | 3 3 2 9 6 . 5 4 4 1 . 2 4 1 3 2 . 3 . 2 . 1 2 3 3 1 7 8 Treads 44 | 1 1 . 5 6 . 2 4 3 . . 1 . . 3 2 . 2 . 2 . 1 2 3 3 . 2 1 Leg 8 | . . 1 . . . . . . 1 . 1 4 1 . . . . . . . . . . . . . . Wheel 19 | 2 2 1 4 . . 3 . . . . . . . . . . 1 . . . . . . . 1 5 . Hover 7 | . . . . . . . . . . . . . . . . . . . . . . . . . . . 7 Flight 1 | . . . . . . . . 1 . . . . . . . . . . . . . . . . . . . Utility 118 | 2 3 2 8 5 . 1 14 1 2 . 1 4 8 5 4 1 11 4 . 3 2 . 9 14 3 8 3 Device 67 | 1 1 . 3 1 . . 9 1 1 . 1 2 7 1 3 . 10 4 . . 2 . 7 7 . 4 2 Storage 12 | 1 2 . 2 . . . . . . . . . . 1 1 . . . . 2 . . . 2 . 1 . Processor 7 | . . 1 . 1 . 1 1 . . . . 1 . . . . . . . . . . . 2 . . . Hackware 4 | . . . . 1 . . . . . . . . . . . 1 . . . . . . . . 2 . . Protection 28 | . . 1 3 2 . . 4 . 1 . . 1 1 3 . . 1 . . 1 . . 2 3 1 3 1 Artifact . | . . . . . . . . . . . . . . . . . . . . . . . . . . . . Weapon 69 | 2 2 1 13 2 1 . 6 2 2 1 . 3 3 2 1 1 3 3 1 . 1 . 5 7 1 2 4 Energy Gun 19 | 2 . . 6 . . . . . . . . . . 1 . . 1 1 . . 1 . . 3 . 1 3 Energy Cannon 12 | . . . . 2 . . 1 . 1 . . . . . . 1 . 1 1 . . . 2 1 1 1 . Ballistic Gun 20 | . 1 1 5 . . . 3 1 1 . . 1 2 . 1 . 1 . . . . . . 3 . . . Ballistic Cannon 4 | . . . . . . . . . . . . 1 . . . . . 1 . . . . 1 . . . 1 Launcher 8 | . . . 1 . . . 2 1 . 1 . 1 . . . . 1 . . . . . 1 . . . . Special Weapon 2 | . 1 . . . . . . . . . . . . 1 . . . . . . . . . . . . . Impact Weapon 3 | . . . 1 . 1 . . . . . . . . . . . . . . . . . 1 . . . . Slashing Weapon 1 | . . . . . . . . . . . . . 1 . . . . . . . . . . . . . . Piercing Weapon . | . . . . . . . . . . . . . . . . . . . . . . . . . . . . Special Melee Weapon . | . . . . . . . . . . . . . . . . . . . . . . . . . . . . Unidentified Prototypes 40 | . . . 2 3 . . . . . . . . . 5 . . 1 1 . 3 1 1 9 12 . 2 . Corrupted Parts 10 | . . . . . . . . . . . 3 . . 1 1 1 . . . . 1 . . 2 . 1 . System Corruption 82 | . . . . . . . . . . . 24 . . 6 8 4 . . . . 4 . . 26 . 10 . Parts Lost 69 | . 5 2 4 2 . . 4 6 1 . 1 2 2 . . 1 3 . . . 1 . . 13 . 3 19 Power 8 | . 2 . . . . . . . . . . . . . . 1 . . . . . . . 1 . . 4 Propulsion 24 | . 3 1 1 . . . 1 5 1 . 1 1 . . . . . . . . . . . 3 . 1 6 Utility 26 | . . . 2 2 . . 1 1 . . . . 1 . . . 2 . . . 1 . . 7 . 2 7 Weapon 11 | . . 1 1 . . . 2 . . . . 1 1 . . . 1 . . . . . . 2 . . 2 Highest Loss Streak 10 | . 2 2 2 1 . . 2 5 1 . 1 1 1 . . 1 1 . . . 1 . . 7 . 2 10 To Critical Strikes 4 | . . . . . . . . . . . . . . . . . . . . . . . . 2 . . 2 Average Backups 22 | 6 17 24 24 24 24 23 24 24 24 25 25 24 24 24 23 23 22 22 22 22 22 22 22 21 20 23 21 Power 2 | . 2 4 3 3 3 2 2 4 4 4 4 2 2 2 2 2 1 1 1 1 1 . 1 . 1 1 . Propulsion 2 | 3 4 4 4 6 6 4 3 . . 1 1 . 2 2 2 2 2 2 2 2 1 2 2 1 2 4 4 Utility 10 | . 6 9 8 7 8 9 11 12 11 11 10 11 11 11 11 11 11 12 12 12 12 12 11 10 11 13 8 Weapon 6 | 1 3 7 7 7 7 6 5 6 7 8 8 7 6 8 7 7 7 6 6 6 5 4 5 6 5 5 8 Tool/Special . | . . . . . . . . . . . . . . . . . . . . . . . . . . . . Unused Backups 92 | 2 6 10 15 6 . 4 5 1 2 . 1 4 . 6 . . 2 . . . 3 1 5 6 . 5 8 Power 12 | . . 2 2 3 . 1 2 . . . . . . 2 . . . . . . . . . . . . . Propulsion 16 | 2 . 1 4 3 . 1 . . . . . . . 2 . . . . . . . . . . . 1 2 Utility 37 | . 5 4 2 . . 2 2 . 1 . 1 4 . 2 . . 1 . . . 2 . 3 4 . 2 2 Weapon 26 | . 1 3 7 . . . 1 1 1 . . . . . . . 1 . . . 1 1 2 1 . 2 4 Tool/Special 1 | . . . . . . . . . . . . . . . . . . . . . . . . 1 . . . Average Slot Usage (%) 92 | . 99 100 99 99 99 95 98 97 99 84 99 99 99 88 87 88 87 87 85 66 84 84 85 78 68 83 85 Engine 3 | . 14 14 11 11 11 10 6 1 . . . 4 . 3 . . . . . . . . . . . . . Core 1 | . . . . . . . . 4 5 6 5 2 8 5 4 . . . . . . . . . . . . Reactor 5 | . . . . . . . . . . . . 2 1 1 5 11 10 10 10 10 10 11 13 12 7 12 10 Treads 14 | . 14 14 19 11 11 10 19 23 20 20 13 7 . 12 17 17 20 20 15 15 15 13 13 12 12 12 11 Leg 2 | . . . . . . . . . 5 6 12 17 29 7 . . . . . . . . . . . . . Wheel 6 | . 14 13 12 22 22 21 13 6 6 6 6 2 . . . . . . . . . . . . . 8 7 Device 15 | . 14 13 10 7 11 11 15 14 12 13 13 17 19 16 20 22 20 18 20 19 20 21 21 17 15 9 15 Storage 6 | . 13 14 11 11 11 10 6 6 6 6 6 5 5 5 5 5 5 5 5 5 5 4 4 4 4 4 5 Processor 6 | . . . . 9 11 11 8 13 13 13 13 11 8 5 5 5 5 5 5 5 5 4 4 4 4 4 3 Hackware 2 | . . . . . . . . . . . . . . . . 4 5 5 5 5 5 4 4 3 7 8 6 Protection 4 | . . . 10 5 . . 7 4 6 6 6 4 5 10 7 1 5 5 5 5 3 4 4 5 4 7 4 Energy Gun 3 | . 18 14 10 . . . . . . . . . . . 5 . 1 1 . . 4 4 4 4 7 5 2 Energy Cannon 2 | . . . . . . . 5 5 5 1 6 4 . 2 . 4 3 3 4 . 1 4 3 2 3 6 3 Ballistic Gun 9 | . 7 14 10 21 18 20 13 13 13 2 13 10 10 5 11 11 9 8 10 . 8 4 3 5 . 2 3 Ballistic Cannon 1 | . . . . . . . . . . . . . 3 . . . . 2 5 . 4 4 3 1 . . 2 Peak Build Rating 232 | 7 10 10 22 27 23 28 55 69 72 72 73 98 102 129 133 130 147 154 152 155 158 174 191 199 168 191 232 Average Rating 95 | 6 8 9 18 22 22 23 48 63 70 59 72 87 99 115 127 125 141 145 149 124 152 169 176 180 142 173 197 On Entrance 92 | . 7 10 10 20 23 23 28 54 67 72 72 69 98 99 129 130 128 143 151 150 153 157 173 191 107 168 170 Naked Turns . | . . . . . . . . . . . . . . . . . . . . . . . . . . . . Heaviest Build 224 | 14 89 90 99 100 95 95 122 123 123 124 124 140 145 155 154 153 156 171 159 175 174 197 203 204 192 219 224 Greatest Support 235 | 20 10 10 24 24 24 36 60 24 83 12 12 98 98 188 188 188 220 220 235 230 230 230 225 230 116 116 144 Greatest Overweight (x) 10 | 1 8 8 9 4 3 3 9 10 10 10 10 10 1 1 . . . . . . . . . 2 1 10 9 Average Overweight (x) 3 | . 6 8 7 3 3 2 4 8 8 8 9 5 1 . . . . . . . . . . . . 3 2 Largest Inventory Capacity 25 | 8 25 25 25 25 25 25 25 25 25 25 25 25 25 25 25 25 25 25 25 25 25 25 25 25 25 25 25 Average Capacity 24 | 7 22 25 25 25 25 24 25 25 25 25 25 25 25 25 25 25 25 25 25 25 25 25 25 25 25 25 23 Most Carried 25 | 8 25 25 25 25 25 25 25 25 25 25 25 25 25 25 25 25 25 25 25 25 25 25 25 25 25 25 25 Average Carried 23 | 6 17 24 24 24 24 23 24 24 24 25 24 24 24 24 24 24 24 24 24 24 24 24 24 24 22 24 23 Final Capacity 25 | 8 25 25 25 25 25 25 25 25 25 25 25 25 25 25 25 25 25 25 25 25 25 25 25 25 25 25 5 Final Carried 25 | 7 25 25 25 25 25 25 25 25 25 25 25 25 25 25 25 24 25 24 25 25 25 25 25 20 25 25 5 Class Distribution -------------------- 25% | Scavenger-Tank 23% | Mutant 14% | Derelict-Skirmisher 10% | Scavenger-Skirmisher 8% | Wizard-Tank 8% | Scavenger-Mutant 3% | Tank Dominant Class ---------------- Mutant | -10/Materials Mutant | -10/Mines Scavenger-Mutant | -9/Materials Mutant | -9/Storage Mutant | -9/Recycling Mutant | -9/Scraptown Tank | -6/Factory Derelict-Skirmisher | -6/Lower Caves Derelict-Skirmisher | -6/Lower Caves Derelict-Mutant | -6/Data Miner Derelict-Skirmisher | -5/Proximity Caves Derelict-Skirmisher | -5/Factory Scavenger-Skirmisher | -5/Extension Scavenger-Tank | -5/Cetus Scavenger-Tank | -5/Archives Scavenger-Skirmisher | -5/Hub_04(d) Scavenger-Tank | -4/Factory Scavenger-Tank | -4/Upper Caves Scavenger-Tank | -4/Upper Caves Scavenger-Mutant | -4/Zhirov Scavenger-Tank | -3/Proximity Caves Scavenger-Tank | -3/Research Scavenger-Tank | -3/Quarantine Scavenger-Tank | -3/Protoforge Wizard-Tank | -2/Research Wizard-Tank | -2/Testing Wizard-Tank | -1/Access Resources | -11 -10 -10 -9 -9 -9 -9 -6 -6 -6 -6 -5 -5 -5 -5 -5 -5 -4 -4 -4 -4 -3 -3 -3 -3 -2 -2 -1 ----------- Run | Yrd Mat Min Mat Sto Rec Scr Fac Low Low Dat Pro Fac Ext Cet Arc Hub Fac Upp Upp Zhi Pro Res Qua Frg Res Tes Acc Matter Collected 18796 | 280 507 89 912 1145 76 160 996 668 285 . 137 670 1104 251 440 266 1156 163 93 151 1202 98 1252 3970 166 900 1659 Remotely 1881 | . . . . . . . . . . . . . 135 . 196 . . . . . . . . 1193 . 122 235 Salvage Created 23687 | 304 1101 208 1598 1783 76 70 1244 430 346 . 269 937 867 453 315 204 905 . 40 . 2056 65 1482 4151 166 1584 3033 Parts 1037 | 23 66 14 92 103 1 3 44 13 10 . 9 44 20 14 17 9 48 . 3 . 59 . 49 200 6 75 115 Haulers Intercepted 14 | . 2 . 6 6 . . . . . . . . . . . . . . . . . . . . . . . Recyclers Shooed 13 | . 1 . 2 1 . . 5 . . . . 1 . . . . 1 . . . 1 . . . . . 1 Parts Field Recycled . | . . . . . . . . . . . . . . . . . . . . . . . . . . . . Retrieved Matter . | . . . . . . . . . . . . . . . . . . . . . . . . . . . . Parts Self-Destructed 33 | . . . . . . . . 3 . . 5 . . . . . . 2 8 . 15 . . . . . . Prevented 70 | . . . . . . . . 10 10 . 3 . . . . . . . . . 47 . . . . . . Kills | -11 -10 -10 -9 -9 -9 -9 -6 -6 -6 -6 -5 -5 -5 -5 -5 -5 -4 -4 -4 -4 -3 -3 -3 -3 -2 -2 -1 ------- Run | Yrd Mat Min Mat Sto Rec Scr Fac Low Low Dat Pro Fac Ext Cet Arc Hub Fac Upp Upp Zhi Pro Res Qua Frg Res Tes Acc Combat Hostiles Destroyed 299 | . 19 3 25 27 . 1 11 12 5 . 2 14 9 4 . 2 14 . 1 . 21 1 16 57 1 17 37 Guns 138 | . 18 3 23 27 . 1 5 3 . . . 3 5 . . 2 10 . . . 1 . 2 27 . 3 5 Cannons 49 | . . . . . . . 6 1 1 . 1 3 3 . . . . . 1 . 3 . 7 10 . 3 10 AOE 41 | . . . 2 . . . . 7 1 . . 8 1 1 . . 4 . . . 1 . 1 3 . 4 8 Classes Destroyed 22 | 3 6 . 4 . . 1 2 . . . . . . . . . 1 . . . . . 1 4 . . . Worker 24 | 2 3 . . 1 . . 1 . . . . 4 1 . . 3 2 . . . . . 3 1 . 1 2 Builder 15 | . 1 . 1 . 1 . . . . . . 1 . . . 1 2 . . . 2 . . . . 2 4 Tunneler 16 | 9 4 1 . . . . 1 . . . . . 1 . . . . . . . . . . . . . . Hauler 14 | . 2 . 6 6 . . . . . . . . . . . . . . . . . . . . . . . Recycler 21 | 1 1 1 3 3 1 . 4 . . . . 3 1 . . . 1 . . . 1 . . . . . 1 Mechanic 5 | . . . 1 1 . . . . . . . 1 . . . . . . . . . . . . 1 1 . Operator 14 | . 2 . 1 1 . . . . . . . . . . 9 . . . . . . . . 1 . . . Drone 4 | . . . . . . . . . . . . . . . . . . . . . . . . 4 . . . Watcher 29 | . 3 . 4 2 . . . . . . . 1 . 2 . . . . . . 2 . 3 2 . 2 8 Swarmer 40 | . 4 3 4 2 . . . 3 . . . 8 . . . . 4 . . . . . . 2 . . 10 Saboteur 2 | . . . . . . . . . . . . . . . . . . . . . . . . 2 . . . Grunt 100 | . 15 . 14 18 . . 5 7 3 . . 1 2 . . . . . . . 13 . 8 5 . 6 3 Brawler 6 | . . . 1 . . . . . 1 . . . 1 . . . . . . . 2 . . 1 . . . Duelist 5 | . . . 1 . . . . 2 . . . . . . . . . . . . . . . 2 . . . Sentry 41 | . . . 5 7 . . 3 . . . . 1 5 . . . 3 . . . 3 1 . 10 1 . 2 Specialist 4 | . . . . . . . . . . . . . . . . . 2 . . . . . . . . . 2 Hunter 31 | . . . . . . . 2 . 1 . 2 . 1 . . . . . . . 2 . 2 4 . 5 12 Programmer 53 | . . . . . . . 1 . . . . 4 . . . 2 5 . 1 . 1 . 5 20 . 6 8 Cetus Guard 4 | . . . . . . . . . . . . . . 4 . . . . . . . . . . . . . Hotshot 6 | . . . . . . . . . . . . . . . . . . . . . . . . 6 . . . Alpha 7 1 | . . . . . . . . . . . . . . . . . . . . . . . . 1 . . . Fortress 1 | . . . . . . . . . . . . . . . . . . . . . . . 1 . . . . Scrapper 1 | . . . . . . 1 . . . . . . . . . . . . . . . . . . . . . Tinkerer 1 | . . . . . . . . . . . . . . . . . . . . . . . . 1 . . . Savage 2 | . . . . . . . . . . . . . 2 . . . . . . . . . . . . . . Guerrilla 1 | . . . . . . . . . . . . . . 1 . . . . . . . . . . . . . Best Kill Streak 9 | 4 3 3 6 9 2 1 4 7 2 . 1 6 3 4 3 3 5 . 1 . 5 1 5 8 1 4 8 Combat Bots Only 8 | . 3 3 4 5 . 1 3 7 2 . 1 4 3 3 . 2 4 . 1 . 5 1 4 8 1 4 7 Max Kills in Single Turn 4 | 1 1 1 3 2 1 1 1 2 1 . 1 4 1 1 1 3 3 . 1 . 2 1 1 2 1 2 2 Gunslinging 1 | . . . . 1 . . . . . . . . . . . . . . . . . . . 1 . . . Exploded 3 | . . . 2 . . . . 2 1 . . 3 1 1 . . 2 . . . 1 . 1 2 . 1 2 Melee . | . . . . . . . . . . . . . . . . . . . . . . . . . . . . Uniques/NPCs Destroyed . | . . . . . . . . . . . . . . . . . . . . . . . . . . . . Combat | -11 -10 -10 -9 -9 -9 -9 -6 -6 -6 -6 -5 -5 -5 -5 -5 -5 -4 -4 -4 -4 -3 -3 -3 -3 -2 -2 -1 -------- Run | Yrd Mat Min Mat Sto Rec Scr Fac Low Low Dat Pro Fac Ext Cet Arc Hub Fac Upp Upp Zhi Pro Res Qua Frg Res Tes Acc Hostile Shots Fired 1968 | . 98 8 106 83 . . 171 74 21 . 21 49 59 19 13 33 74 . 2 . 85 10 78 432 4 122 406 Missed 489 | . 20 2 24 24 . . 54 22 4 . 4 17 10 8 5 11 12 . 1 . 25 5 17 94 . 25 105 Hits 1479 | . 78 6 82 59 . . 117 52 17 . 17 32 49 11 8 22 62 . 1 . 60 5 61 338 4 97 301 Melee 26 | . . . 8 . . . . 11 . . . . . . . . . . . . 2 . . 5 . . . Projectile 1453 | . 78 6 74 59 . . 117 41 17 . 17 32 49 11 8 22 62 . 1 . 58 5 61 333 4 97 301 Critical Strikes 86 | . 1 . 4 2 . . 4 7 1 . . 1 2 3 . 1 3 . . . 3 . 9 30 . 6 9 Part Disruptions 6 | . . . . . . . . . . . . . . . . . . . . . . . 1 3 . . 2 Actively Blocked 1 | . . . . . . . . . . . . . . . . . . . . . . . . 1 . . . Damage Taken 24018 | . 914 54 1153 809 . . 1311 1314 220 . 231 554 845 206 172 715 1257 . 20 . 965 87 885 6911 100 1545 3750 Core 1995 | . 196 8 158 167 . . 97 85 43 . 6 19 38 18 . 83 33 . . . 13 . 34 657 . 62 278 Absorbed by Shields 9250 | . . . . . . . 234 204 96 . 72 54 321 83 48 . 169 . . . 526 67 750 3429 . 580 2617 Reduced by Siege Mode 499 | . . . . . . . . . . . . . . . . 6 57 . . . 115 . 70 200 . 51 . Redirected to Shielding 148 | . . . . . . . . . . . . . . . . . . . . . . . . 148 . . . Ignored by Resistances 1544 | . . . . . . . . . . . . . . . . . . . . . . . . 158 11 201 1174 Regen/Repaired (Parts) 548 | . 339 . 93 . . . . . . . . . . . . . . . . . . . 116 . . . . Core Remaining (%) 67 | 100 . 18 . . . 18 . . . . 72 . . . . 84 . . . . 96 . . 42 . 95 82 Volleys Fired 1411 | 31 128 10 125 100 2 1 90 32 16 . 17 64 61 10 44 27 86 11 6 . 62 20 73 219 10 65 101 Largest 4 | 2 2 2 2 2 2 2 3 3 1 . 1 3 3 1 3 3 3 1 4 . 4 4 4 4 3 4 4 Hottest 360 | 90 100 70 100 50 50 50 145 148 75 . 85 143 113 75 146 166 148 105 228 . 203 275 275 360 244 289 302 Shots Fired 2701 | 61 230 20 241 197 4 2 186 48 17 . 18 103 112 10 101 47 141 12 9 . 87 38 145 463 16 123 270 Gun 1816 | 61 217 20 233 196 4 2 120 19 . . . 39 61 . 101 29 91 1 2 . 29 12 51 303 11 60 154 Cannon 755 | . . . . . . . 64 15 6 . 18 60 48 5 . 18 48 11 7 . 18 26 83 157 5 55 111 Launcher 108 | . . . 1 1 . . 2 14 11 . . 4 3 3 . . 2 . . . 40 . 11 3 . 8 5 Special 22 | . 13 . 7 . . . . . . . . . . 2 . . . . . . . . . . . . . Kinetic 1263 | . 57 10 119 196 4 2 120 19 . . . 56 82 . 72 21 59 1 3 . 24 12 50 226 . 28 102 Thermal 1005 | 61 173 10 121 . . . 64 15 1 . 7 43 15 . 29 26 80 11 6 . 19 26 84 120 7 47 40 Explosive 19 | . . . 1 1 . . . 6 . . . 4 . . . . 2 . . . . . . . . . 5 Electromagnetic 412 | . . . . . . . 2 8 16 . 11 . 15 8 . . . . . . 44 . 11 117 9 48 123 Robot Hit Streak 29 | 6 9 6 22 21 . 2 15 4 5 . 5 13 13 5 8 7 10 . 3 . 17 8 20 29 6 19 13 Robot Miss Streak 9 | 3 4 3 5 5 4 . 3 1 3 . 2 3 7 2 7 2 2 . . . 1 3 5 9 3 3 4 Penetration Max 2 | . . . . . . . . . . . . 1 1 . 1 . 1 . . . 1 . . 2 . . 1 Secondary Targets 14 | . 3 . 2 2 . . . . . . . . . . . . 2 . . . . . . 5 . . . Max Gunslinging Chain 1 | . 1 . 1 1 . . . . . . . . . . . . 1 . . . . . . 1 . . . Shots Hit Robots 1547 | 35 130 12 157 135 2 2 113 23 5 . 10 50 72 6 60 16 70 . 1 . 47 17 77 284 7 64 152 Core Hits 700 | 13 59 7 59 48 . 2 38 23 6 . 4 32 34 10 23 10 30 . 1 . 43 5 38 108 4 33 70 Critical Kills 10 | . . . . . . . . . . . . . . . 1 . . . . . . . . 3 . 3 3 Critical Parts Destroyed 31 | . . . . . 1 . 1 . . . . . 4 . 1 . 1 . . . . . 3 10 . 2 8 Critical Strikes 69 | 3 5 . 9 . 1 . 1 . . . . 1 5 . 2 . 1 . . . . 2 3 15 . 5 16 Burn 17 | 3 5 . 9 . . . . . . . . . . . . . . . . . . . . . . . . Meltdown 1 | . . . . . . . . . . . . . . . . . . . . . . . . . . 1 . Destroy 41 | . . . . . . . 1 . . . . . 4 . 2 . 1 . . . . 1 3 14 . 4 11 Blast 6 | . . . . . . . . . . . . 1 1 . . . . . . . . 1 . 1 . . 2 Corrupt 3 | . . . . . . . . . . . . . . . . . . . . . . . . . . . 3 Smash 1 | . . . . . 1 . . . . . . . . . . . . . . . . . . . . . . Melee Attacks 25 | . . . 6 2 4 . . . . . . . 3 . . . . . . . . . 1 9 . . . Kinetic 10 | . . . . . . . . . . . . . . . . . . . . . . . 1 9 . . . Impact 12 | . . . 6 2 4 . . . . . . . . . . . . . . . . . . . . . . Slashing 3 | . . . . . . . . . . . . . 3 . . . . . . . . . . . . . . Piercing . | . . . . . . . . . . . . . . . . . . . . . . . . . . . . Sneak Attacks 5 | . . . . . 2 . . . . . . . 3 . . . . . . . . . . . . . . Combat Hostiles . | . . . . . . . . . . . . . . . . . . . . . . . . . . . . Follow-up Attacks . | . . . . . . . . . . . . . . . . . . . . . . . . . . . . Damage Inflicted 53298 | 437 1483 142 2611 2525 119 32 2472 2097 532 . 320 2376 2613 485 1541 917 2506 . 45 . 3555 570 3318 11408 218 3558 7418 Guns 29367 | 437 1483 142 2342 2481 . 32 1516 228 . . . 582 1171 . 1541 522 1931 . . . 626 219 1255 7751 93 1313 3702 Cannons 11555 | . . . . . . . 916 114 71 . 320 932 1114 169 . . 132 . 45 . 268 351 1176 2601 125 985 2236 Explosions 11735 | . . . 269 44 . . 40 1755 461 . . 862 169 316 . 393 443 . . . 2661 . 887 722 . 1260 1453 Melee 612 | . . . . . 119 . . . . . . . 159 . . . . . . . . . . 334 . . . Ramming 29 | . . . . . . . . . . . . . . . . 2 . . . . . . . . . . 27 Kinetic 23091 | . 294 62 967 2481 . 32 1516 228 . . . 998 1705 . 1081 271 1161 . . . 591 315 1230 6827 . 651 2681 Thermal 12370 | 437 1189 80 1375 . . . 916 114 . . 155 516 374 . 460 251 902 . 45 . 477 255 1201 1726 90 1227 580 Explosive 4614 | . . . 269 44 . . . 1407 . . . 862 . . . . 443 . . . . . . . . 215 1374 Electromagnetic 12916 | . . . . . . . 40 348 532 . 165 . 375 485 . 393 . . . . 2487 . 887 2855 128 1465 2756 Impact 119 | . . . . . 119 . . . . . . . . . . . . . . . . . . . . . . Slashing 159 | . . . . . . . . . . . . . 159 . . . . . . . . . . . . . . Piercing . | . . . . . . . . . . . . . . . . . . . . . . . . . . . . Highest Corruption 87 | . 1 1 . . . . . 1 1 1 25 3 4 10 10 15 5 5 1 1 11 . 11 87 . 16 17 Average Corruption 7 | . 1 1 . . . . . 1 1 1 1 2 3 8 7 5 4 3 1 1 2 . 9 25 . 3 7 Corruption Purged 21 | . . . . . . . . . . . . 3 . . 14 . . 4 . . . . . . . . . Corruption Blocked . | . . . . . . . . . . . . . . . . . . . . . . . . . . . . Effects 468 | . 8 5 . . . . . 2 19 3 8 7 3 13 22 29 33 6 2 1 25 . 44 190 . 16 32 Message Errors 92 | . 3 . . . . . . . 8 1 1 5 . 1 5 7 6 1 1 . 7 . 5 33 . 1 7 Matter Fused 97 | . 1 1 . . . . . . 3 1 5 1 . 3 5 9 4 1 . . 5 . 10 40 . . 8 Heat Flow Errors 60 | . 1 . . . . . . . 3 . . . . 1 2 2 4 1 . . . . 10 34 . 1 1 Energy Discharges 68 | . . 1 . . . . . . . . . . 1 3 3 3 5 1 . . 7 . 7 23 . 7 7 Parts Rejected 5 | . . . . . . . . . 1 . . . . . . 1 1 . . . . . . 1 . . 1 Parts Fused 1 | . . . . . . . . . . . . . . . . . . . . . 1 . . . . . . Data Loss (minor) 62 | . 3 3 . . . . . 1 2 1 1 1 1 2 2 . 6 . 1 1 2 . 8 23 . 2 2 Data Loss (major) 28 | . . . . . . . . . 1 . . . . 2 3 3 3 1 . . 1 . 4 8 . 1 1 Misfires 25 | . . . . . . . . 1 1 . 1 . 1 . 1 2 3 1 . . 2 . . 10 . 1 1 Alerts 7 | . . . . . . . . . . . . . . 1 . 2 . . . . . . . 1 . 1 2 Misdirections 3 | . . . . . . . . . . . . . . . . . . . . . . . . 3 . . . Weapon Failures 20 | . . . . . . . . . . . . . . . 1 . 1 . . . . . . 14 . 2 2 Overload Shots 2 | . . . . . . . . . . . . . . . . . . . . . . . . 2 . . . Overflow Damage 1290 | . . . 26 . 94 . 10 196 . . 31 82 36 . . 20 77 . . . 25 . 186 98 . 155 254 Projectiles 597 | . . . . . . . 10 . . . 31 45 36 . . . . . . . 2 . 186 56 . 73 158 Explosions 599 | . . . 26 . . . . 196 . . . 37 . . . 20 77 . . . 23 . . 42 . 82 96 Melee 94 | . . . . . 94 . . . . . . . . . . . . . . . . . . . . . . Knockbacks 25 | . . . . . 1 . . . . . . 2 3 . . . . . . . 1 2 5 3 . . 8 Impact 1 | . . . . . 1 . . . . . . . . . . . . . . . . . . . . . . Kinetic 22 | . . . . . . . . . . . . 2 2 . . . . . . . 1 1 5 3 . . 8 Secondary 2 | . . . . . . . . . . . . . 1 . . . . . . . . 1 . . . . . Self-Inflicted Damage 1117 | . . . . . . . 19 360 11 . . . 29 . . 72 81 . . . 140 . 34 13 . 207 151 Shots 33 | . . . . . . . 1 7 1 . . . 2 . . 1 2 . . . 7 . 3 1 . 5 3 Rammed 3 | . . . . . . . . . . . . . . . . 1 . . . . . . . . . . 2 Targets Rammed 3 | . . . . . . . . . . . . . . . . 1 . . . . . . . . . . 2 Kicked . | . . . . . . . . . . . . . . . . . . . . . . . . . . . . Crushed . | . . . . . . . . . . . . . . . . . . . . . . . . . . . . Highest Temperature 799 | 220 220 30 200 79 6 6 336 86 256 . . 42 280 176 202 171 347 214 81 . 66 185 191 799 140 423 334 Average Temperature 59 | 79 40 15 38 18 4 4 77 42 130 . . 9 30 85 36 47 69 36 23 . 38 66 76 125 73 107 94 Received Heat Transfer 4264 | . 474 . 384 303 . . 329 258 51 . . 12 438 18 21 9 84 . . . 225 12 63 1408 18 106 51 Effects 9 | . . . . . . . 1 . . . . . . . . . 1 . . . . . . 5 . 2 . Shutdowns 2 | . . . . . . . . . . . . . . . . . . . . . . . . 1 . 1 . Energy Bleed 3 | . . . . . . . . . . . . . . . . . 1 . . . . . . 1 . 1 . Interference 2 | . . . . . . . . . . . . . . . . . . . . . . . . 2 . . . Damage (minor) 1 | . . . . . . . 1 . . . . . . . . . . . . . . . . . . . . Damage (core) 1 | . . . . . . . . . . . . . . . . . . . . . . . . 1 . . . Siege Activations 38 | . . . . . . . . . . . . . . . . 1 4 . . . 6 1 5 14 . 4 3 Total Turns 555 | . . . . . . . . . . . . . . . . 10 51 . . . 114 2 78 225 . 46 29 Longest Duration 74 | . . . . . . . . . . . . . . . . 10 28 . . . 36 2 24 74 . 21 18 Martial Activations . | . . . . . . . . . . . . . . . . . . . . . . . . . . . . Shielding Activations . | . . . . . . . . . . . . . . . . . . . . . . . . . . . . Robots Disrupted 2 | . . . . . . . . . 1 . . . . . . . . . . . . . . 1 . . . Combat Hostiles 2 | . . . . . . . . . 1 . . . . . . . . . . . . . . 1 . . . Robots Corrupted 69 | . . . . . 2 . . 1 3 . 1 . . 3 . . . . . . 16 . 5 16 1 6 15 Combat Hostiles 66 | . . . . . . . . 1 3 . 1 . . 3 . . . . . . 16 . 5 16 1 6 14 Parts Fried 113 | . . . . . 6 . . 1 2 . 2 . . 5 . 1 . . . . 17 . 4 27 3 17 28 Impact Corruptions 4 | . . . . . 4 . . . . . . . . . . . . . . . . . . . . . . Robots Melted 3 | . 1 . . . . . . . . . . . . . . . . . . . . 1 . . . 1 . Combat Hostiles 3 | . 1 . . . . . . . . . . . . . . . . . . . . 1 . . . 1 . Parts Melted 33 | 1 6 . 7 . . . 2 . . . . . 2 . 4 1 2 . . . . . 2 3 . 2 1 Heat Transferred 18617 | 1351 3659 175 3602 . . . 1184 148 . . 185 629 444 . 629 259 1088 . 37 . 433 296 1332 1745 74 927 420 Parts Sabotaged . | . . . . . . . . . . . . . . . . . . . . . . . . . . . . Parts Stolen . | . . . . . . . . . . . . . . . . . . . . . . . . . . . . Parts Stripped 32 | . . . . . . . . . . . . . . . . . . . . . . . 18 14 . . . Power Chain Reactions 7 | . . . . . . . . . . . . . . . . . . . . . 2 . . 3 . 1 1 Alert | -11 -10 -10 -9 -9 -9 -9 -6 -6 -6 -6 -5 -5 -5 -5 -5 -5 -4 -4 -4 -4 -3 -3 -3 -3 -2 -2 -1 ------- Run | Yrd Mat Min Mat Sto Rec Scr Fac Low Low Dat Pro Fac Ext Cet Arc Hub Fac Upp Upp Zhi Pro Res Qua Frg Res Tes Acc Maximum Alert Level 4 | . 1 . 1 2 . . . . . . . 1 3 2 2 1 1 . . . . 1 1 4 2 2 4 Low Security (%) 63 | 100 94 100 90 19 100 . 100 . . . . 71 68 . . 76 98 . . . . 96 60 19 . 75 . Level 1 17 | . 5 . 9 79 . . . . . . . 28 7 . 56 23 1 . . . . 3 39 19 11 4 35 Level 2 12 | . . . . . . . . . . . . . 15 100 43 . . . . . . . . 40 88 20 15 Level 3 4 | . . . . . . . . . . . . . 8 . . . . . . . . . . 10 . . 48 Level 4 1 | . . . . . . . . . . . . . . . . . . . . . . . . 9 . . 1 Level 5 . | . . . . . . . . . . . . . . . . . . . . . . . . . . . . High Security . | . . . . . . . . . . . . . . . . . . . . . . . . . . . . Max Security . | . . . . . . . . . . . . . . . . . . . . . . . . . . . . Peak Influence 1250 | 20 213 94 227 405 86 . 115 . . . . 325 926 627 455 271 207 . . . . 238 310 1250 672 440 1101 Initial 672 | . 3 64 . 94 43 . . . . . . . 149 512 226 102 97 . . . . 136 34 142 672 209 240 Average 219 | 1 77 18 100 258 19 . 36 . . . . 82 222 553 373 103 62 . . . . 125 144 537 466 159 676 Influence Increases 13606 | 60 676 85 871 927 197 . 423 330 165 . 65 568 1462 295 351 570 581 . 30 . 613 404 698 1918 41 730 1546 Destroy 0b10 Robot/C 6760 | . 380 60 500 540 . . 220 240 100 . 40 280 680 160 80 100 280 . 20 . 460 140 320 1060 20 340 740 Destroy 0b10 Robot/NC 770 | 60 80 15 80 70 10 . 30 5 . . 5 50 50 10 45 25 25 . . . 25 . 30 45 5 30 75 Destroy Leader 1354 | . 80 10 140 146 . . 60 40 20 . 20 52 94 . . 22 80 . 10 . 40 60 56 184 10 54 176 Allied During Kill 993 | . . . . . . . . . . . . . 529 110 125 63 . . . . 28 138 . . . . . Successful Hack 339 | . 37 . 48 23 36 . . . . . . 18 14 9 . 18 33 . . . . 17 86 . . . . Select Force Hacks 270 | . 60 . 30 . 150 . 30 . . . . . . . . . . . . . . . . . . . . Disable Machine 825 | . 15 . 15 45 . . 30 . . . . 30 30 . 75 105 45 . . . . 15 30 225 . 90 75 Anti-Garrison Action 200 | . . . . . . . . . . . . . . . . . . . . . . . . 200 . . . Destroy Structure 1465 | . 9 . 28 13 1 . 23 . . . . 138 50 6 26 222 118 . . . . 34 116 144 6 171 360 Partial Spotted 45 | . 15 . . . . . . . . . . . . . . . . . . . . . . . . 15 15 Lose Combat Pursuer 585 | . . . 30 90 . . 30 45 45 . . . 15 . . 15 . . . . 60 . 60 60 . 30 105 Influence Decreases 12590 | 55 514 252 645 1040 310 . 400 292 226 . 65 262 851 647 621 666 748 32 30 . 410 545 506 977 863 701 932 Entered New Map 2594 | . 2 103 . 132 70 . . 9 13 . . . 157 405 339 193 102 13 . . . 67 28 112 523 164 162 Time Decay 8097 | 55 462 129 620 538 240 . 367 223 213 . 65 242 480 222 262 373 449 19 30 . 380 278 478 735 190 497 550 Lost Part 648 | . 50 20 25 20 . . 33 60 . . . 20 20 . . 10 30 . . . 10 . . 130 . 30 190 Lost Ally 634 | . . . . 50 . . . . . . . . 194 20 20 90 . . . . 20 200 . . . 10 30 Purge Threat 617 | . . . . 300 . . . . . . . . . . . . 167 . . . . . . . 150 . . Squads Dispatched 65 | . 5 . 3 5 . . 5 . . . . 4 3 . . 3 6 . . . 1 3 4 10 . 6 7 Investigation 16 | . 3 . 2 1 . . 4 . . . . . . . . . 2 . . . . 1 1 1 . . 1 Extermination 23 | . . . . . . . 1 . . . . 3 . . . 2 3 . . . . . 3 6 . 3 2 Reinforcement 21 | . 2 . 1 2 . . . . . . . 1 3 . . 1 1 . . . 1 2 . 1 . 3 3 Assault 3 | . . . . . . . . . . . . . . . . . . . . . . . . 2 . . 1 Garrison 2 | . . . . 2 . . . . . . . . . . . . . . . . . . . . . . . Intercept . | . . . . . . . . . . . . . . . . . . . . . . . . . . . . Searches Triggered . | . . . . . . . . . . . . . . . . . . . . . . . . . . . . Data Miner Redirects 2 | . . . . . . . . . . . . . . . . . . . . . . . . 1 . . 1 Construction Impeded 6 | . . . . . . . . . . . . 1 1 . . . . . . . 1 . . . . 2 1 Haulers Reinforced . | . . . . . . . . . . . . . . . . . . . . . . . . . . . . Active Scanning Responses . | . . . . . . . . . . . . . . . . . . . . . . . . . . . . Cargo Convoy Interrupts 1 | . . . . . . . 1 . . . . . . . . . . . . . . . . . . . . Stealth | -11 -10 -10 -9 -9 -9 -9 -6 -6 -6 -6 -5 -5 -5 -5 -5 -5 -4 -4 -4 -4 -3 -3 -3 -3 -2 -2 -1 --------- Run | Yrd Mat Min Mat Sto Rec Scr Fac Low Low Dat Pro Fac Ext Cet Arc Hub Fac Upp Upp Zhi Pro Res Qua Frg Res Tes Acc Distress Signals 33 | . 2 . 4 3 . . 1 . . . . . 3 2 . 2 . . . . 1 4 2 5 . 1 3 Communications Jammed 109 | . . . . . . . . . . . . . 88 . . 21 . . . . . . . . . . . Distress Signals 109 | . . . . . . . . . . . . . 88 . . 21 . . . . . . . . . . . Times Spotted 484 | . 34 3 45 41 . 1 18 14 7 . 2 14 35 9 25 9 15 . 1 . 27 12 21 63 3 21 64 Peak Tracking Total 11 | . 4 3 4 5 . . 5 6 4 . 1 4 5 5 2 4 4 . 1 . 5 4 5 5 1 4 11 Tactical Retreats 28 | . . . 1 6 . . 2 1 2 . . . 1 . . 1 . . . . 3 . 2 4 . 1 4 Traps | -11 -10 -10 -9 -9 -9 -9 -6 -6 -6 -6 -5 -5 -5 -5 -5 -5 -4 -4 -4 -4 -3 -3 -3 -3 -2 -2 -1 ------- Run | Yrd Mat Min Mat Sto Rec Scr Fac Low Low Dat Pro Fac Ext Cet Arc Hub Fac Upp Upp Zhi Pro Res Qua Frg Res Tes Acc Traps Triggered 20 | . 3 . 1 4 . . . . . . . . . . . 2 3 . . . . . 2 4 . . 1 Indirectly 1 | . . . . . . . . . . . . . . . . 1 . . . . . . . . . . . Trap Hack Attempts . | . . . . . . . . . . . . . . . . . . . . . . . . . . . . Triggered . | . . . . . . . . . . . . . . . . . . . . . . . . . . . . Disarmed . | . . . . . . . . . . . . . . . . . . . . . . . . . . . . Reprogrammed . | . . . . . . . . . . . . . . . . . . . . . . . . . . . . Reused . | . . . . . . . . . . . . . . . . . . . . . . . . . . . . Traps Extracted . | . . . . . . . . . . . . . . . . . . . . . . . . . . . . Installed . | . . . . . . . . . . . . . . . . . . . . . . . . . . . . Triggered . | . . . . . . . . . . . . . . . . . . . . . . . . . . . . Machines | -11 -10 -10 -9 -9 -9 -9 -6 -6 -6 -6 -5 -5 -5 -5 -5 -5 -4 -4 -4 -4 -3 -3 -3 -3 -2 -2 -1 ---------- Run | Yrd Mat Min Mat Sto Rec Scr Fac Low Low Dat Pro Fac Ext Cet Arc Hub Fac Upp Upp Zhi Pro Res Qua Frg Res Tes Acc Machines Disabled 62 | . 1 . 1 3 . . 2 . . . 1 2 3 . 5 7 3 . . . 3 1 2 17 . 6 5 Max in Single Turn 6 | . 1 . 1 1 . . 1 . . . 1 1 . . 1 6 1 . . . 2 . 1 2 . 1 1 Garrison Access 8 | . . . . 1 . . 1 . . . . . . . . 1 . . . . . . 1 1 . 1 2 Network Hub 1 | . . . . . . . . . . . . . . . . 1 . . . . . . . . . . . Machines Repaired . | . . . . . . . . . . . . . . . . . . . . . . . . . . . . Machines Dismantled . | . . . . . . . . . . . . . . . . . . . . . . . . . . . . Machines Sabotaged . | . . . . . . . . . . . . . . . . . . . . . . . . . . . . Overloaded Fab Kills . | . . . . . . . . . . . . . . . . . . . . . . . . . . . . Hacking | -11 -10 -10 -9 -9 -9 -9 -6 -6 -6 -6 -5 -5 -5 -5 -5 -5 -4 -4 -4 -4 -3 -3 -3 -3 -2 -2 -1 --------- Run | Yrd Mat Min Mat Sto Rec Scr Fac Low Low Dat Pro Fac Ext Cet Arc Hub Fac Upp Upp Zhi Pro Res Qua Frg Res Tes Acc Machines Accessed 105 | . 10 . 7 12 11 4 8 1 1 3 1 5 2 1 . 4 6 3 1 5 2 3 5 3 1 4 2 Terminals 53 | . 7 . 4 10 6 . 1 . . . . 3 2 1 . 3 4 . . . 2 2 3 2 1 2 . Fabricators 2 | . . . . . . . . . . . . 1 . . . . . . . . . . . . . 1 . Repair Stations 5 | . 1 . 1 . . . 2 . . . . . . . . . . . . . . . 1 . . . . Recycling Units 16 | . 2 . 1 1 5 . 4 . . . . . . . . . 2 . . . . 1 . . . . . Scanalyzers 2 | . . . 1 . . . . . . . . 1 . . . . . . . . . . . . . . . Garrison Access 8 | . . . . 1 . . 1 . . . . . . . . 1 . . . . . . 1 1 . 1 2 Total Hacks 313 | . 26 . 27 25 29 29 16 1 1 18 1 10 3 1 . 14 39 8 1 17 2 11 17 3 4 8 2 Successful 204 | . 14 . 15 8 17 29 9 1 1 18 1 4 2 1 . 7 18 8 1 17 2 7 8 3 4 7 2 Failed 108 | . 12 . 12 17 11 . 7 . . . . 6 1 . . 7 21 . . . . 4 9 . . 1 . Catastrophic 12 | . 1 . 1 4 . . 1 . . . . . . . . 2 1 . . . . 2 . . . . . Database Lockouts 1 | . . . . . 1 . . . . . . . . . . . . . . . . . . . . . . Manual 121 | . 18 . 14 8 17 . 5 . . . . 4 1 1 . 12 22 . . . . 8 6 1 3 1 . Terminals 166 | . 20 . 14 22 15 . 3 . . . . 7 3 1 . 12 34 . . . 2 9 13 2 4 5 . Fabricators 4 | . . . . . . . . . . . . 2 . . . . . . . . . . . . . 2 . Repair Stations 10 | . 2 . 2 . . . 3 . . . . . . . . . . . . . . . 3 . . . . Recycling Units 39 | . 4 . 4 2 14 . 8 . . . . . . . . . 5 . . . . 2 . . . . . Scanalyzers 8 | . . . 7 . . . . . . . . 1 . . . . . . . . . . . . . . . Garrison Access 10 | . . . . 1 . . 2 . . . . . . . . 2 . . . . . . 1 1 . 1 2 Terminal Hacks 133 | . 5 . 2 6 7 29 2 1 1 18 1 1 1 1 . 3 12 8 1 17 2 4 2 2 3 4 . Record 50 | . . . . . . 29 . . . 6 1 . . . . . . 6 . 6 1 . . 1 . . . Part Schematic 13 | . . . . . 1 . . . . 9 . . . . . . . . . 3 . . . . . . . Robot Schematic 3 | . . . . . . . . . . 3 . . . . . . . . . . . . . . . . . Robot Analysis 11 | . 3 . 1 . 3 . . . . . . . . . . . . . . 4 . . . . . . . Prototype ID Bank 4 | . . . . . . . . . . . . . . . . . . . . 4 . . . . . . . Open Door 11 | . . . . 4 . . . 1 1 . . . . 1 . . . 2 1 . 1 . . . . . . Branch Access Points 4 | . . . 1 . . . . . . . . . . . . . 1 . . . . 1 . . 1 . . Machine Index 1 | . . . . . . . . . . . . . . . . . . . . . . . 1 . . . . Terminal Index 4 | . 1 . . . . . . . . . . . . . . 1 1 . . . . . . . 1 . . Fabricator Index 1 | . . . . . . . . . . . . . . . . . 1 . . . . . . . . . . Recycling Unit Index 2 | . . . . . 1 . . . . . . . . . . . 1 . . . . . . . . . . Scanalyzer Index 1 | . . . . . 1 . . . . . . . . . . . . . . . . . . . . . . Garrison Index 1 | . . . . . . . . . . . . . . . . . . . . . . 1 . . . . . Alert Level 1 | . . . . . . . . . . . . . . . . . . . . . . . 1 . . . . Unreport Threat 5 | . . . . 2 . . . . . . . . . . . . 2 . . . . . . . 1 . . Locate Traps 7 | . 1 . . . . . 1 . . . . 1 1 . . . 2 . . . . 1 . . . . . Maintenance Status 2 | . . . . . . . . . . . . . . . . 1 1 . . . . . . . . . . Recall Extermination 2 | . . . . . . . . . . . . . . . . . 1 . . . . . . . . 1 . Recall Reinforcements 3 | . . . . . . . . . . . . . . . . . . . . . . . . . . 3 . Hauler Manifests 1 | . . . . . 1 . . . . . . . . . . . . . . . . . . . . . . Registered Components 1 | . . . . . . . . . . . . . . . . . 1 . . . . . . . . . . Zone Layout 4 | . . . . . . . 1 . . . . . . . . 1 1 . . . . 1 . . . . . Proto ID Catalog 1 | . . . . . . . . . . . . . . . . . . . . . . . . 1 . . . Fabricator Hacks 3 | . . . . . . . . . . . . 1 . . . . . . . . . . . . . 2 . Network Status 2 | . . . . . . . . . . . . 1 . . . . . . . . . . . . . 1 . Build 1 | . . . . . . . . . . . . . . . . . . . . . . . . . . 1 . Repair Station Hacks 6 | . 2 . 2 . . . . . . . . . . . . . . . . . . . 2 . . . . Scan Component 3 | . 1 . 1 . . . . . . . . . . . . . . . . . . . 1 . . . . Repair 3 | . 1 . 1 . . . . . . . . . . . . . . . . . . . 1 . . . . Recycling Unit Hacks 7 | . 1 . 1 . 4 . 1 . . . . . . . . . . . . . . . . . . . . Retrieve Components 7 | . 1 . 1 . 4 . 1 . . . . . . . . . . . . . . . . . . . . Scanalyzer 6 | . . . 6 . . . . . . . . . . . . . . . . . . . . . . . . Insert Component 3 | . . . 3 . . . . . . . . . . . . . . . . . . . . . . . . Analyze 3 | . . . 3 . . . . . . . . . . . . . . . . . . . . . . . . Garrison Access Hacks 7 | . . . . 1 . . 1 . . . . . . . . 1 . . . . . . 1 . . 1 2 Seal Access 7 | . . . . 1 . . 1 . . . . . . . . 1 . . . . . . 1 . . 1 2 Unauthorized Hacks 42 | . 6 . 4 1 6 . 5 . . . . 2 1 . . 3 6 . . . . 3 3 1 1 . . Terminals 26 | . 4 . 3 1 1 . 1 . . . . 2 1 . . 3 4 . . . . 2 3 . 1 . . Track 1 | . . . . . . . . . . . . . . . . . 1 . . . . . . . . . . Assimilate 4 | . 1 . . . . . . . . . . 1 . . . . . . . . . . 1 . 1 . . Botnet 18 | . 2 . 2 1 1 . 1 . . . . 1 1 . . 3 2 . . . . 2 2 . . . . Operators 3 | . 1 . 1 . . . . . . . . . . . . . 1 . . . . . . . . . . Fabricators . | . . . . . . . . . . . . . . . . . . . . . . . . . . . . Repair Stations . | . . . . . . . . . . . . . . . . . . . . . . . . . . . . Recycling Units 15 | . 2 . 1 . 5 . 4 . . . . . . . . . 2 . . . . 1 . . . . . Tunnel 9 | . 2 . 1 . 5 . 1 . . . . . . . . . . . . . . . . . . . . Fedlink 6 | . . . . . . . 3 . . . . . . . . . 2 . . . . 1 . . . . . Scanalyzers . | . . . . . . . . . . . . . . . . . . . . . . . . . . . . Garrison Access 1 | . . . . . . . . . . . . . . . . . . . . . . . . 1 . . . Jam 1 | . . . . . . . . . . . . . . . . . . . . . . . . 1 . . . Data Cores Recovered . | . . . . . . . . . . . . . . . . . . . . . . . . . . . . Used . | . . . . . . . . . . . . . . . . . . . . . . . . . . . . Hacking Detections 61 | . 9 . 5 8 9 . 5 . . . . 5 1 1 . 4 6 . . . . 2 4 . 1 1 . Full Trace Events 2 | . . . . 2 . . . . . . . . . . . . . . . . . . . . . . . Feedback Events . | . . . . . . . . . . . . . . . . . . . . . . . . . . . . Feedback Blocked . | . . . . . . . . . . . . . . . . . . . . . . . . . . . . Robot Schematics Acquired 3 | . . . . . . . . . . 3 . . . . . . . . . . . . . . . . . Robots Built . | . . . . . . . . . . . . . . . . . . . . . . . . . . . . Authchips . | . . . . . . . . . . . . . . . . . . . . . . . . . . . . Time . | . . . . . . . . . . . . . . . . . . . . . . . . . . . . Total Robot Build Rating . | . . . . . . . . . . . . . . . . . . . . . . . . . . . . Part Schematics Acquired 15 | . . . 2 . 1 . . . . 9 . . . . . . . . . 3 . . . . . . . Parts Built 2 | . . . . . . . . . . . . . . . . . . . . . . . . . . 2 . Authchips . | . . . . . . . . . . . . . . . . . . . . . . . . . . . . Time 139 | . . . . . . . . . . . . . . . . . . . . . . . . . . 139 . Total Part Build Rating 18 | . . . . . . . . . . . . . . . . . . . . . . . . . . 18 . Parts Repaired 3 | . 1 . 1 . . . . . . . . . . . . . . . . . . . 1 . . . . Time 59 | . 26 . 13 . . . . . . . . . . . . . . . . . . . 20 . . . . Parts Recycled . | . . . . . . . . . . . . . . . . . . . . . . . . . . . . Recycled Matter . | . . . . . . . . . . . . . . . . . . . . . . . . . . . . Retrieved Matter . | . . . . . . . . . . . . . . . . . . . . . . . . . . . . Retrieved Components 26 | . 2 . 10 . 7 . 7 . . . . . . . . . . . . . . . . . . . . Parts Scanalyzed 2 | . . . 2 . . . . . . . . . . . . . . . . . . . . . . . . Part Schematics Acquired 2 | . . . 2 . . . . . . . . . . . . . . . . . . . . . . . . Parts Damaged . | . . . . . . . . . . . . . . . . . . . . . . . . . . . . Bothacking | -11 -10 -10 -9 -9 -9 -9 -6 -6 -6 -6 -5 -5 -5 -5 -5 -5 -4 -4 -4 -4 -3 -3 -3 -3 -2 -2 -1 ------------ Run | Yrd Mat Min Mat Sto Rec Scr Fac Low Low Dat Pro Fac Ext Cet Arc Hub Fac Upp Upp Zhi Pro Res Qua Frg Res Tes Acc Used RIF Installer . | . . . . . . . . . . . . . . . . . . . . . . . . . . . . Robots Hacked . | . . . . . . . . . . . . . . . . . . . . . . . . . . . . Non-combat . | . . . . . . . . . . . . . . . . . . . . . . . . . . . . Combat . | . . . . . . . . . . . . . . . . . . . . . . . . . . . . Robot Hacks Applied . | . . . . . . . . . . . . . . . . . . . . . . . . . . . . Relay Couplers Released . | . . . . . . . . . . . . . . . . . . . . . . . . . . . . Fabnet Peak Effective % . | . . . . . . . . . . . . . . . . . . . . . . . . . . . . Robots Rewired 19 | . . . . . . . . . . . . . 8 . . . . . . . 11 . . . . . . Allies Hacked 3 | . . . . . . . . . . . . . 1 . . . . . . . . 2 . . . . . Hacks Repelled . | . . . . . . . . . . . . . . . . . . . . . . . . . . . . Allies | -11 -10 -10 -9 -9 -9 -9 -6 -6 -6 -6 -5 -5 -5 -5 -5 -5 -4 -4 -4 -4 -3 -3 -3 -3 -2 -2 -1 -------- Run | Yrd Mat Min Mat Sto Rec Scr Fac Low Low Dat Pro Fac Ext Cet Arc Hub Fac Upp Upp Zhi Pro Res Qua Frg Res Tes Acc Total Allies 36 | . . . . . . . . . . . . 1 18 5 . . . . . . 11 . . . 1 . . Largest Group 12 | . . . . . . . . . . . . 1 12 7 6 4 . . . . 10 10 . . 1 1 . Highest-Rated Group 662 | . . . . . . . . . . . . 10 492 662 556 377 . . . . 407 407 . . 10 10 . Highest-Rated Ally 159 | . . . . . . . . . . . . 10 159 151 151 96 . . . . 89 89 . . 10 10 . Total Orders 33 | . . . . 2 . . . 1 . . . 6 . . 2 3 6 . . . 6 4 1 . . . 2 STAY 3 | . . . . . . . . . . . . . . . 1 . . . . . 2 . . . . . . FOLLOW 3 | . . . . . . . . . . . . . . . 1 . . . . . 2 . . . . . . EXPLORE 4 | . . . . 2 . . . . . . . . . . . . . . . . . . . . . . 2 RETURN 23 | . . . . . . . . 1 . . . 6 . . . 3 6 . . . 2 4 1 . . . . Ally Attacks 350 | . . . . . . . . . . . . . 182 45 24 24 . . . . 13 62 . . . . . Total Damage 8363 | . . . . . . . . . . . . . 4022 916 1023 788 . . . . 394 1220 . . . . . Kills 54 | . . . . . . . . . . . . . 34 4 4 4 . . . . 2 6 . . . . . Allies Corrupted 1 | . . . . 1 . . . . . . . . . . . . . . . . . . . . . . . Allies Melted . | . . . . . . . . . . . . . . . . . . . . . . . . . . . . Intel | -11 -10 -10 -9 -9 -9 -9 -6 -6 -6 -6 -5 -5 -5 -5 -5 -5 -4 -4 -4 -4 -3 -3 -3 -3 -2 -2 -1 ------- Run | Yrd Mat Min Mat Sto Rec Scr Fac Low Low Dat Pro Fac Ext Cet Arc Hub Fac Upp Upp Zhi Pro Res Qua Frg Res Tes Acc Active Infowar (turns) 31694 | 600 1516 703 1914 919 928 1702 1236 2110 1758 13 1376 1443 1604 . 6 1108 1577 648 620 290 1881 611 1405 3348 384 1352 642 Sensors 20689 | . . . . . . . 473 2110 1758 13 1376 1443 1055 . 2 1057 1203 642 618 282 1728 535 1218 2816 372 1346 642 IFF 600 | . . . . . . . 600 . . . . . . . . . . . . . . . . . . . . Terrain 935 | . . . . . . . . . . . . . . . . . . . . . 97 . 505 333 . . . Structural 2 | . . . . . . . . . . . . 2 . . . . . . . . . . . . . . . Traps 1 | . . . . . . . . . . . . . . . . . 1 . . . . . . . . . . Seismic 8860 | 600 1516 703 1914 919 928 1702 578 . . . . . . . . . . . . . . . . . . . . Cloaking 8158 | . . . . . . . . . . . . . . . . . . 543 462 271 1398 611 1094 3198 381 200 . Jamming 6202 | . . . . . . . . . . . . . 1572 . 6 1108 1089 99 620 290 1418 . . . . . . Robot Analysis Total 11 | . 3 . 1 . 3 . . . . . . . . . . . . . . 4 . . . . . . . Derelict Logs Recovered 8 | . . 1 . . . . . 1 1 . 1 . . . . . . 2 2 . . . . . . . . Drone Launches 36 | . . . . 6 . . . 1 . . . 7 . . . 3 7 . . . 2 4 1 . . . 5 Drone Recoveries 24 | . . . . . . . . 1 . . . 7 . . . 2 6 . . . 2 4 . . . . 2 Exploration | -11 -10 -10 -9 -9 -9 -9 -6 -6 -6 -6 -5 -5 -5 -5 -5 -5 -4 -4 -4 -4 -3 -3 -3 -3 -2 -2 -1 ------------- Run | Yrd Mat Min Mat Sto Rec Scr Fac Low Low Dat Pro Fac Ext Cet Arc Hub Fac Upp Upp Zhi Pro Res Qua Frg Res Tes Acc Turns Passed 38125 | 716 2274 730 2991 1529 928 1702 1462 2387 1798 174 1429 1614 1705 467 578 1109 1603 693 620 290 1881 611 1496 3689 384 1668 1597 Spaces Moved 17025 | 123 942 325 1175 607 671 1272 705 1038 759 79 609 582 660 213 190 544 771 405 358 161 832 297 660 1560 148 674 665 Core 95 | 1 . . . . . 94 . . . . . . . . . . . . . . . . . . . . . Treads 6716 | 18 . . 2 33 . 5 3 . 2 . . . . 177 190 544 771 405 358 161 832 297 660 1560 148 318 232 Legs 1000 | . . . . . . . . . . . . 304 660 36 . . . . . . . . . . . . . Wheels 9072 | 104 942 325 1173 574 671 1173 702 1038 757 79 609 278 . . . . . . . . . . . . . 356 291 Hover 142 | . . . . . . . . . . . . . . . . . . . . . . . . . . . 142 Flight . | . . . . . . . . . . . . . . . . . . . . . . . . . . . . Fastest Speed 24 | 50 95 200 135 135 135 50 120 150 210 210 225 182 182 160 160 160 156 156 156 160 160 160 170 163 163 147 24 Average Speed 175 | 108 174 200 194 159 135 128 150 215 225 211 225 216 182 164 160 160 156 156 159 160 160 167 174 166 223 202 165 Slowest Speed 480 | 160 200 200 480 480 135 160 240 240 240 240 240 260 182 240 160 160 160 156 160 160 160 173 176 330 243 243 317 Overloaded Moves . | . . . . . . . . . . . . . . . . . . . . . . . . . . . . Propulsion Burnouts . | . . . . . . . . . . . . . . . . . . . . . . . . . . . . Robots Hopped . | . . . . . . . . . . . . . . . . . . . . . . . . . . . . Potential Cave-ins 3 | . . . . . . . . 1 . . . . . . . . 2 . . . . . . . . . . Cave-ins Triggered . | . . . . . . . . . . . . . . . . . . . . . . . . . . . . Teleports 7 | . . . . . . . . . . . . . . . . . . . . . . . . 1 . . 6 Exploration Rate (%) 56 | 5 98 51 66 95 90 88 16 83 77 68 76 19 76 74 87 29 17 62 50 60 69 12 77 39 5 76 25 Regions Visited 27 Branch Regions 19 Pre-discovered Areas 22 | . 2 1 1 . 5 4 2 . . 1 1 . . . . . . 1 1 3 . . . . . . . Known Exits Taken 21 | . . . 1 . . . 1 1 1 1 1 1 1 1 1 1 1 1 1 1 1 1 1 1 1 1 . Unknown Exits Taken 6 | 1 1 1 . 1 1 1 . . . . . . . . . . . . . . . . . . . . . Scrap Searched 23 | . . 1 . . . 6 . 4 4 . 3 . . . . . . 3 1 . 1 . . . . . . Spaces Dug 323 | . 8 . 10 8 1 . 16 7 . . . 40 . . . 17 41 11 5 . 8 14 33 48 2 19 35 Terrain Destroyed 965 | . 9 . 25 8 1 . 22 118 1 . 1 88 14 . 11 187 69 11 6 . 17 18 66 91 2 61 139 Melee 6 | . . . 4 1 1 . . . . . . . . . . . . . . . . . . . . . . Projectile 495 | . 9 . 8 . . . 22 10 1 . 1 31 14 . 11 26 62 11 6 . 16 18 66 91 2 25 65 AOE 464 | . . . 13 7 . . . 108 . . . 57 . . . 161 7 . . . 1 . . . . 36 74 Terrain Rammed . | . . . . . . . . . . . . . . . . . . . . . . . . . . . . Walls Destroyed . | . . . . . . . . . . . . . . . . . . . . . . . . . . . . Machines Disabled . | . . . . . . . . . . . . . . . . . . . . . . . . . . . . Actions | -11 -10 -10 -9 -9 -9 -9 -6 -6 -6 -6 -5 -5 -5 -5 -5 -5 -4 -4 -4 -4 -3 -3 -3 -3 -2 -2 -1 --------- Run | Yrd Mat Min Mat Sto Rec Scr Fac Low Low Dat Pro Fac Ext Cet Arc Hub Fac Upp Upp Zhi Pro Res Qua Frg Res Tes Acc Total 23153 | 642 1326 406 1638 1012 682 1354 966 1136 830 86 646 840 1052 323 377 738 1058 453 399 194 1312 388 923 2302 191 884 995 Wait 2816 | 468 183 23 198 219 . 1 78 26 21 . 4 119 182 47 118 148 105 11 25 . 260 50 99 247 7 65 112 Move 16997 | 122 941 324 1174 606 670 1271 704 1037 758 78 608 581 659 212 189 543 770 404 357 160 831 296 659 1559 147 673 664 Hop . | . . . . . . . . . . . . . . . . . . . . . . . . . . . . Pick Up 333 | 9 45 20 29 12 1 36 23 5 6 . 2 14 7 9 2 2 9 4 1 4 14 3 12 31 10 8 15 Fast Attach 174 | 6 1 2 10 6 1 6 5 4 4 3 1 5 3 10 5 1 16 5 2 11 2 5 16 19 2 13 10 Attach 119 | 1 5 2 5 2 . 2 8 5 . . . 5 2 3 2 1 3 2 . . 3 1 3 29 8 4 23 Detach 33 | . . . . 1 . . . . . . . . . . . . . . . . . . . 16 3 4 9 Swap 663 | 2 16 4 49 30 2 7 33 22 15 2 12 34 47 9 9 13 49 9 5 5 41 7 31 132 3 30 45 Drop 406 | 3 7 21 42 23 2 30 25 5 10 3 2 18 15 23 8 2 20 7 3 14 15 6 29 37 1 22 13 Fire 1411 | 31 128 10 125 100 2 1 90 32 16 . 17 64 61 10 44 27 86 11 6 . 62 20 73 219 10 65 101 Melee 25 | . . . 6 2 4 . . . . . . . 3 . . . . . . . . . 1 9 . . . Ram . | . . . . . . . . . . . . . . . . . . . . . . . . . . . . Kick . | . . . . . . . . . . . . . . . . . . . . . . . . . . . . Crush 3 | . . . . . . . . . . . . . . . . 1 . . . . . . . . . . 2 Escape Stasis 12 | . . . . 8 . . . . . . . . . . . . . . . . . . . 4 . . . Rewire 157 | . . . . . . . . . . . . . 73 . . . . . . . 84 . . . . . . Trap . | . . . . . . . . . . . . . . . . . . . . . . . . . . . . Miscellaneous 4 | . . . . 3 . . . . . . . . . . . . . . . . . . . . . . 1 Route ------- -11/Scrapyard -10/Materials (discovered 5 exits: *Mat x3 / [*Min x2]) -10/Mines -9/Materials (discovered 5 exits: [*Mat x2] / *Min x2 / *Sto) -9/Storage (discovered 2 exits: [*Mat] / *Rec) -9/Recycling (discovered 2 exits: [*Fac] / *Scr) -9/Scraptown (discovered 2 exits: *Fac x2) -6/Factory (discovered 5 exits: Fac x3 / *Low x2) -6/Lower Caves -6/Lower Caves -6/Data Miner -5/Proximity Caves -5/Factory (discovered 2 exits: *Fac / *Ext) -5/Extension (discovered 2 exits: *Fac / *Cet) -5/Cetus (discovered 2 exits: *Fac / *Arc) -5/Archives (discovered 3 exits: *Fac / *Hub x2) -5/Hub_04(d) -4/Factory (discovered 6 exits: Res x3 / *Upp x2 / Arm) -4/Upper Caves -4/Upper Caves (discovered 2 exits: *Res / *Zhi) -4/Zhirov -3/Proximity Caves -3/Research (discovered 4 exits: *Res x2 / *Qua x2) -3/Quarantine (discovered 2 exits: *Sec / *Frg) -3/Protoforge -2/Research (discovered 3 exits: *Acc / *Tes x2) -2/Testing -1/Access To Epsilon Eridani History --------- Turn | Location | Event 17 | -11/Scrapyard | Discovered new exit (range 16) 717 | -11/Scrapyard | Entered Materials 737 | -10/Materials | Build established: Mutant 882 | -10/Materials | Discovered new exit (range 16) 1694 | -10/Materials | Discovered new exit (range 16) 2087 | -10/Materials | Repaired Huge Storage Unit 2228 | -10/Materials | Discovered new exit (range 9) 2240 | -10/Materials | Core integrity fell below 50% 2489 | -10/Materials | Discovered new exit (range 16) 2672 | -10/Materials | Discovered new exit (range 6) 2991 | -10/Materials | Entered Mines 3033 | -10/Mines | Core integrity fell below 20% 3291 | -10/Mines | Learned location of Zion (-7) 3336 | -10/Mines | Discovered new exit (range 4) 3350 | -10/Mines | Joined a pair of Derelicts in attacking an 0b10 outpost 3507 | -10/Mines | Received a Rocket Launcher from a helpful Derelict 3587 | -10/Mines | Assembled infested the area 3721 | -10/Mines | Entered Materials 3721 | -9/Materials | Evolved 2 slots: Propulsion x1, Utility x1 3827 | -9/Materials | Identified exit to Mines 3827 | -9/Materials | Identified exit to Storage 4105 | -9/Materials | Build established: Scavenger-Mutant 4534 | -9/Materials | Repaired Lgt. Treads 5069 | -9/Materials | Discovered new exit (range 3) 6223 | -9/Materials | Build established: Mutant 6540 | -9/Materials | Discovered new exit (range 10) 6712 | -9/Materials | Entered Storage 6801 | -9/Storage | Core integrity fell below 50% 7151 | -9/Storage | Garrison activated, responded to threat 7891 | -9/Storage | Core integrity fell below 20% 7976 | -9/Storage | Discovered new exit (range 16) 8236 | -9/Storage | Used back door to open Recycling access 8236 | -9/Storage | Discovered new exit (range 4) 8241 | -9/Storage | Entered Recycling 8318 | -9/Recycling | Scanned before Scraplab entrance 8842 | -9/Recycling | Discovered new exit (range 16) 9155 | -9/Recycling | Entered Scraplab 9166 | -9/Recycling | Discovered new exit (range 3) 9169 | -9/Recycling | Entered Scraptown 9331 | -9/Scraptown | Visited TADAMA 9357 | -9/Scraptown | Visited Red Mages 9402 | -9/Scraptown | Visited The Evicted 9435 | -9/Scraptown | Visited Cyclists 9468 | -9/Scraptown | Visited Cave Peace 9481 | -9/Scraptown | Visited Shadow of the Wyrm 9507 | -9/Scraptown | Visited SPCMW 9535 | -9/Scraptown | Visited UFD Registry 9535 | -9/Scraptown | Registered with UFD as "Steamcutter" 9585 | -9/Scraptown | Entered Cyclist Reading Room 9639 | -9/Scraptown | Discovered new exit (range 13) 10077 | -9/Scraptown | Visited Chapter 10 10098 | -9/Scraptown | Visited Supply Room 10120 | -9/Scraptown | Visited Curators Association 10307 | -9/Scraptown | Visited Supply Room 10328 | -9/Scraptown | Visited DA-N13 Charitable Foundation 10333 | -9/Scraptown | Found DCF Scrap (28 items) 10381 | -9/Scraptown | Visited Abandonware Association 10397 | -9/Scraptown | Learned abandonware demo "OVRCLOCK.EXE" 10399 | -9/Scraptown | Learned abandonware demo "REBOOT5.EXE" 10399 | -9/Scraptown | Learned abandonware demo "REPAIR.EXE" 10432 | -9/Scraptown | Visited Derelict Rescue Squad 10467 | -9/Scraptown | Visited Scrap Suit Storage 10491 | -9/Scraptown | Visited Cartography Club 10573 | -9/Scraptown | Learned location of Cetus (-5) 10573 | -9/Scraptown | Learned location of Quarantine (-3) 10573 | -9/Scraptown | Learned 8 Materials zone layouts 10573 | -9/Scraptown | Learned 12 Materials zone layouts 10573 | -9/Scraptown | Learned 16 Factory zone layouts 10573 | -9/Scraptown | Learned 20 Factory zone layouts 10573 | -9/Scraptown | Learned 4 Recycling zone layouts 10573 | -9/Scraptown | Learned 8 Upper Caves zone layouts 10573 | -9/Scraptown | Learned 12 Upper Caves zone layouts 10573 | -9/Scraptown | Learned 16 Upper Caves zone layouts 10573 | -9/Scraptown | Learned 4 Armory zone layouts 10573 | -9/Scraptown | Learned location of 2 exits from Research 10573 | -9/Scraptown | Learned location of 1 exit from Proximity Caves 10573 | -9/Scraptown | Learned location of 2 exits from Proximity Caves 10578 | -9/Scraptown | Found Deep Structural Scanner 10785 | -9/Scraptown | Met Optimus 10785 | -9/Scraptown | Accepted into 0bPrime 10840 | -9/Scraptown | Civil war broke out across Scraptown 10869 | -9/Scraptown | Discovered new exit (range 3) 10871 | -9/Scraptown | Entered Factory 10871 | -6/Factory | Evolved 6 slots: Propulsion x2, Utility x3, Weapon x1 10872 | -6/Factory | Identified exit to Factory 10872 | -6/Factory | Identified exit to Lower Caves 11261 | -6/Factory | Build established: Tank 11428 | -6/Factory | Loaded intel: 8 recycling unit locations 12061 | -6/Factory | Learned location of Protoforge (-3) 12129 | -6/Factory | Build established: Scavenger-Skirmisher 12234 | -6/Factory | Cargo convoy interrupted 12333 | -6/Factory | Entered Lower Caves 12406 | -6/Lower Caves | Encountered a Warlord checkpoint 12934 | -6/Lower Caves | Destroyed 7 combat bots 12939 | -6/Lower Caves | Lost 5 parts (4n1u) 13820 | -6/Lower Caves | Spotted B-75 Beast 13849 | -6/Lower Caves | Build established: Derelict-Skirmisher 14336 | -6/Lower Caves | Discovered new exit (range 9) 14601 | -6/Lower Caves | Learned Factory terminal intel 14694 | -6/Lower Caves | Identified exit to Lower Caves 14720 | -6/Lower Caves | Entered another Lower Caves area 14938 | -6/Lower Caves | Identified exit to Data Miner 16518 | -6/Lower Caves | Entered Data Miner 16518 | -6/Data Miner | Discovered new exit (range 6) 16527 | -6/Data Miner | Identified exit to Proximity Caves 16562 | -6/Data Miner | Met Data Miner 16598 | -6/Data Miner | Learned location of Section 7 (-3) 16598 | -6/Data Miner | Acquired the access code to Warlord's prototype stash 16629 | -6/Data Miner | Received God Mode back door access code from Data Miner 16692 | -6/Data Miner | Entered Proximity Caves 16992 | -5/Proximity Caves | Found Alien Artifact 17636 | -5/Proximity Caves | Learned location of Warlord (-5) 18116 | -5/Proximity Caves | System corruption reached 10% 18121 | -5/Proximity Caves | Entered Factory 18121 | -5/Factory | Evolved 2 slots: Power x1, Utility x1 18122 | -5/Factory | Identified exit to Extension 18123 | -5/Factory | Loaded intel: 27 terminal locations 18898 | -5/Factory | Discovered new exit (range 9) 18928 | -5/Factory | Identified exit to Factory 19735 | -5/Factory | Entered Extension 19810 | -5/Extension | Disrupted transfer network 20031 | -5/Extension | Rescued a captive Derelict 20274 | -5/Extension | Rescued a captive Derelict 20275 | -5/Extension | Rescued a captive Derelict 20418 | -5/Extension | Rescued a captive Derelict 20717 | -5/Extension | Spotted B-75 Beast 20727 | -5/Extension | Allies destroyed B-75 Beast 20752 | -5/Extension | Lost 4 allies 20752 | -5/Extension | Spotted B-75 Beast 20780 | -5/Extension | Allies destroyed B-75 Beast 20884 | -5/Extension | Rescued A7 20952 | -5/Extension | Rescued a captive Derelict 20954 | -5/Extension | Rescued a captive Derelict 21027 | -5/Extension | Rescued a captive Derelict 21076 | -5/Extension | Rescued a captive Derelict 21080 | -5/Extension | Rescued a captive Derelict 21246 | -5/Extension | Build established: Scavenger-Skirmisher 21307 | -5/Extension | Disrupted transfer network 21318 | -5/Extension | P-70 Sage assimilated allied U9-GK2(g) 21358 | -5/Extension | Discovered exit to Factory (range 10) 21360 | -5/Extension | Discovered new exit (range 6) 21418 | -5/Extension | Identified exit to Cetus 21440 | -5/Extension | Entered Cetus 21440 | -5/Cetus | Accompanied by 3 allies (A7) 21445 | -5/Cetus | Acquired a Cetus Manufacturing Module code from A7 21479 | -5/Cetus | Spotted Cetus Guard 21479 | -5/Cetus | Allies destroyed Cetus Guard 21480 | -5/Cetus | Spotted Cetus Guard 21482 | -5/Cetus | Spotted Cetus Guard 21482 | -5/Cetus | Spotted Cetus Guard 21486 | -5/Cetus | Allies destroyed Cetus Guard 21494 | -5/Cetus | Destroyed Cetus Guard 21495 | -5/Cetus | Allies destroyed Cetus Guard 21553 | -5/Cetus | System corruption reached 10% 21602 | -5/Cetus | Started Cetus Manufacturing Module 21614 | -5/Cetus | Escorted A7 to Cetus Mainframe 21627 | -5/Cetus | Manufactured an Enhanced Grunt 21652 | -5/Cetus | Manufactured an Enhanced Grunt 21677 | -5/Cetus | Manufactured an Enhanced Grunt 21702 | -5/Cetus | Manufactured an Enhanced Grunt 21716 | -5/Cetus | Discovered new exit (range 15) 21727 | -5/Cetus | Manufactured an Enhanced Grunt 21753 | -5/Cetus | Spotted Cetus Guard 21754 | -5/Cetus | Spotted Cetus Guard 21758 | -5/Cetus | Spotted Cetus Guard 21759 | -5/Cetus | Destroyed Cetus Guard 21759 | -5/Cetus | Spotted Cetus Guard 21764 | -5/Cetus | Destroyed Cetus Guard 21767 | -5/Cetus | Destroyed Cetus Guard 21778 | -5/Cetus | Allies destroyed Cetus Guard 21790 | -5/Cetus | Found Prototype Device 21790 | -5/Cetus | Identified Exp. Thermal Shield 21803 | -5/Cetus | Discovered exit to Factory (range 16) 21812 | -5/Cetus | Met Revision 17 21887 | -5/Cetus | Identified exit to Archives 21907 | -5/Cetus | Entered Archives 21907 | -5/Archives | Accompanied by 6 allies (A7) 21912 | -5/Archives | Received a hacking code to weaken MAIN.C 22043 | -5/Archives | Discovered new exit (range 15) 22046 | -5/Archives | Build established: Scavenger-Tank 22099 | -5/Archives | Discovered exit to Factory (range 16) 22193 | -5/Archives | Discovered new exit (range 14) 22476 | -5/Archives | Identified exit to Hub_04(d) 22485 | -5/Archives | Entered Hub_04(d) 22485 | -5/Hub_04(d) | Accompanied by 4 allies 22775 | -5/Hub_04(d) | Spotted B-75 Beast 22823 | -5/Hub_04(d) | Discovered exit to Factory (range 5) 23202 | -5/Hub_04(d) | Build established: Scavenger-Skirmisher 23326 | -5/Hub_04(d) | Network Hub disabled 23561 | -5/Hub_04(d) | Spotted Lightning 23573 | -5/Hub_04(d) | Spotted Lightning 23573 | -5/Hub_04(d) | Spotted Lightning 23594 | -5/Hub_04(d) | Entered Factory 23594 | -4/Factory | Evolved 2 slots: Propulsion x1, Utility x1 23595 | -4/Factory | Identified exit to Research 23897 | -4/Factory | Build established: Scavenger-Tank 24108 | -4/Factory | Identified exit to Upper Caves 24108 | -4/Factory | Identified exit to Armory 24939 | -4/Factory | Loaded intel: 8 recycling unit locations 25197 | -4/Factory | Entered Upper Caves 25198 | -4/Upper Caves | Identified exit to Upper Caves 25201 | -4/Upper Caves | Encountered a Warlord checkpoint 25350 | -4/Upper Caves | Learned Research stockpile data 25579 | -4/Upper Caves | Found Alien Artifact 25579 | -4/Upper Caves | Identified Core Expander 25579 | -4/Upper Caves | Installed Core Expander, added new Weapon slot 25638 | -4/Upper Caves | Entered an active Warlord outpost 25654 | -4/Upper Caves | Learned Armory stockpile data 25654 | -4/Upper Caves | Learned Armory security intel 25654 | -4/Upper Caves | Learned Factory garrison access intel 25890 | -4/Upper Caves | Entered another Upper Caves area 26215 | -4/Upper Caves | Learned Research trap positions 26320 | -4/Upper Caves | Discovered new exit (range 5) 26327 | -4/Upper Caves | Identified exit to Zhirov 26510 | -4/Upper Caves | Entered Zhirov 26510 | -4/Zhirov | Discovered new exit (range 3) 26512 | -4/Zhirov | Identified exit to Proximity Caves 26543 | -4/Zhirov | Met Zhirov 26572 | -4/Zhirov | Learned location of Testing (-2) 26572 | -4/Zhirov | Learned location of Command (-1) 26586 | -4/Zhirov | Zhirov requested help retrieving the SGEMP Prototype 26615 | -4/Zhirov | Found Alien Artifact 26615 | -4/Zhirov | Identified Integrated Dissipator 26615 | -4/Zhirov | Installed Integrated Dissipator, increased core heat dissipation (+20) 26699 | -4/Zhirov | Found Alien Artifact 26800 | -4/Zhirov | Entered Proximity Caves 27908 | -3/Proximity Caves | Snuck into a huge 0b10 base via the rear entrance 28676 | -3/Proximity Caves | System corruption reached 10% 28681 | -3/Proximity Caves | Entered Research 28681 | -3/Research | Accompanied by 10 allies 28681 | -3/Research | Evolved 2 slots: Power x1, Utility x1 28682 | -3/Research | Identified exit to Quarantine 28682 | -3/Research | Identified exit to Research 28683 | -3/Research | Loaded intel: 107 trap records 28728 | -3/Research | Build established: Commander-Tank 28755 | -3/Research | Loaded intel: 5 recycling unit locations 28881 | -3/Research | Revision forces began assault on 0b10 28887 | -3/Research | Lost 4 allies 28932 | -3/Research | Discovered exit to Research (range 15) 28947 | -3/Research | Met up with Revision 17++ 29129 | -3/Research | Build established: Scavenger-Tank 29141 | -3/Research | Lost 5 allies 29292 | -3/Research | Entered Quarantine 29919 | -3/Quarantine | Found Alien Impact Weapon 30139 | -3/Quarantine | System corruption reached 10% 30318 | -3/Quarantine | Repaired Hardcell Cannon 30546 | -3/Quarantine | Identified Core Stripper 30559 | -3/Quarantine | Spotted Fortress 30566 | -3/Quarantine | Destroyed Fortress 30586 | -3/Quarantine | Found Prototype Device 30586 | -3/Quarantine | Identified Thermal Barrier 30604 | -3/Quarantine | Found Unknown Protection 30604 | -3/Quarantine | Identified Hvy. Insulated Plating 30621 | -3/Quarantine | Found Prototype Device 30621 | -3/Quarantine | Identified Exp. EM Shield 30624 | -3/Quarantine | Found Prototype Device 30624 | -3/Quarantine | Identified Exp. Force Field 30773 | -3/Quarantine | Discovered new exit (range 5) 30773 | -3/Quarantine | Discovered new exit (range 6) 30778 | -3/Quarantine | Identified exit to Section 7 30783 | -3/Quarantine | Identified exit to Protoforge 30788 | -3/Quarantine | Entered Protoforge 30830 | -3/Protoforge | Superfortress began startup sequence 31323 | -3/Protoforge | Spotted Hotshot 31336 | -3/Protoforge | Destroyed Hotshot 31339 | -3/Protoforge | Spotted Hotshot 31622 | -3/Protoforge | Spotted Hotshot 31632 | -3/Protoforge | Destroyed Hotshot 31637 | -3/Protoforge | Spotted Hotshot 31640 | -3/Protoforge | Destroyed Hotshot 31699 | -3/Protoforge | Destroyed Hotshot 31810 | -3/Protoforge | Spotted Hotshot 31810 | -3/Protoforge | Spotted Hotshot 31816 | -3/Protoforge | Destroyed Hotshot 31850 | -3/Protoforge | Destroyed Hotshot 32039 | -3/Protoforge | Discovered exit to Research (range 14) 32068 | -3/Protoforge | Identified Dimensional Node Initializer 32068 | -3/Protoforge | Initialized slip node 32183 | -3/Protoforge | Found Prototype Device 32183 | -3/Protoforge | Identified Cep. Weapon Articulator 32274 | -3/Protoforge | Found Prototype Ballistic Gun 32274 | -3/Protoforge | Identified Cep. XC Strikerail 32285 | -3/Protoforge | Found Cep. XC Strikerail 32523 | -3/Protoforge | Build established: Tank 32636 | -3/Protoforge | Lost 3 parts (1n2u) 32711 | -3/Protoforge | Incoming investigation squad redirected 32723 | -3/Protoforge | Found Prototype Storage 32724 | -3/Protoforge | Identified Cep. Chromion Battery 32733 | -3/Protoforge | Found Prototype Device 32736 | -3/Protoforge | Found Cep. Chromion Battery 32746 | -3/Protoforge | Found Prototype Storage 32747 | -3/Protoforge | Identified Cep. NT7 Matterbank 32907 | -3/Protoforge | Spotted V633-w 32907 | -3/Protoforge | Spotted V414-d 32907 | -3/Protoforge | Spotted V060-a 32914 | -3/Protoforge | Identified Cep. Matter Streamer 32976 | -3/Protoforge | Found Prototype Device 32977 | -3/Protoforge | Identified Crosscalibrator 32994 | -3/Protoforge | Spotted Immortal 32996 | -3/Protoforge | Spotted Immortal 33002 | -3/Protoforge | Spotted Decapitator 33002 | -3/Protoforge | Spotted Decapitator 33002 | -3/Protoforge | Spotted Decapitator 33002 | -3/Protoforge | Spotted Decapitator 33128 | -3/Protoforge | System corruption reached 30% 33253 | -3/Protoforge | Spotted Decapitator 33253 | -3/Protoforge | Spotted Decapitator 33253 | -3/Protoforge | Spotted V252-e 33509 | -3/Protoforge | Spotted V689-a 33538 | -3/Protoforge | First assault squad dispatched 33538 | -3/Protoforge | Found Prototype Processor 33538 | -3/Protoforge | Identified Cep. Projectile Intercept Suite 33633 | -3/Protoforge | Spotted Decapitator 33633 | -3/Protoforge | Spotted Decapitator 33686 | -3/Protoforge | Spotted V479-m 33686 | -3/Protoforge | Spotted V123-j 33699 | -3/Protoforge | Spotted Immortal 33699 | -3/Protoforge | Spotted Immortal 33801 | -3/Protoforge | Destroyed 8 combat bots 33942 | -3/Protoforge | Found Cep. Network Penetrator 33953 | -3/Protoforge | Found Prototype Device 34014 | -3/Protoforge | Build established: Scavenger-Tank 34034 | -3/Protoforge | Found Cep. Network Penetrator 34217 | -3/Protoforge | Additional patrols dispatched to research labs 34256 | -3/Protoforge | Found Cep. Nanofilaments [Tensile] 34256 | -3/Protoforge | Installed Cep. Nanofilaments [Tensile], 3 resistances modified: KI +20%, TH -10%, I +20% 34273 | -3/Protoforge | Found Cep. Navigation Harness 34352 | -3/Protoforge | Spotted AP7-3 34398 | -3/Protoforge | Spotted AP7-3 34426 | -3/Protoforge | Core integrity fell below 50% 34430 | -3/Protoforge | Destroyed AP7-3 34452 | -3/Protoforge | Identified Transdimensional Reconstructor 34452 | -3/Protoforge | Warped through subspace to slip node 34477 | -3/Protoforge | Entered Research 34477 | -2/Research | Evolved 2 slots: Propulsion x1, Utility x1 34483 | -2/Research | Lost 7 parts (1p2n2u2w) 34514 | -2/Research | Identified exit to Testing 34825 | -2/Research | Discovered new exit (range 14) 34861 | -2/Research | Entered Testing 34861 | -2/Testing | Accompanied by 1 ally 34924 | -2/Testing | Build established: Wizard-Tank 35095 | -2/Testing | Discovered new exit (range 15) 35828 | -2/Testing | Fabricated Enh. Nova Cannon? 36043 | -2/Testing | Found Corrupted Prototype Launcher 36383 | -2/Testing | Found Prototype Energy Cannon 36383 | -2/Testing | Identified Imp. Potential Cannon 36526 | -2/Testing | Identified exit to Access 36529 | -2/Testing | System corruption reached 10% 36529 | -2/Testing | Entered Access 36529 | -1/Access | Evolved 2 slots: Utility x2 37374 | -1/Access | Destroyed 7 combat bots 37488 | -1/Access | Lost 3 parts (1p1n1u) 37529 | -1/Access | First assault squad dispatched 37559 | -1/Access | Incoming assault squad redirected 37835 | -1/Access | System corruption reached 10% 37875 | -1/Access | Lost 3 parts (2n1u) 37956 | -1/Access | Spotted B-99 Colossus 38070 | -1/Access | Lost 10 parts (3p2n3u2w) 38122 | -1/Access | Discovered new exit (range 7) 38126 | -1/Access | Identified exit to Surface 38126 | *** | Escaped! Last Messages --------------- 38074_ Triggered Alarm Trap. 38074_ An alarm sounds. 38074_ ALERT: Alarm triggered, dispatching investigation squad. 38084_ Drawn through space via semi-controlled quantum shift. 38088_ System corrupted: Substantial component data lost. 38090_ Acquired 4 matter. 38091_ Acquired 86 matter. 38095_ Acquired Mic. Antimatter Reactor. 38104_ Sealed Barrier breached. 38108_ ,P0 TOB2QTJZ7NL,SNXKZ7GBJ3PL7FJBL&&W Cep. Navigation Harness integrity failing. 38116_ Main Access Shell breached. Cep. Navigation Harness integrity failing. 38122_ EXIT=FOUND 38123_ System corrupted: Matter fused (-6). 38126_ EXIT=IDENTIFIED: SURFACE [Achievement: I Was Wrong!] Map ----- +----------------------------------------------------+ | ####[% # #?? # #?????? | | ?# #*% # #? # #????? | | ?#=# ! +=% # " = # #???# | | ?# # % #! # """? # #???# | | ?#### ## # """ # #???# | | ????# ## # ???? ######## ????# | | ????# ## #?????? ??????????????# | | ????# ## #?????? ??????????????# | | ???## ##"#########"##???????####??????????????# | | ??# # ## #?###?????#?????????##???????????????# | | ##### #######################"#######?????????# | | % %| % ??????????## | | % % = ????????????? | | #####+#####% ######## ""#?????????????????? | | ## % # #??????# ""#?????????????????? | | ?# % # #??????# ""#?????????????????? | | ?# ! # #??????# T#?????????????????? | | ?# !! # #??????# ""#?????????????????? | | ?# !! # #??????# ""#?????????????????? | | ?# # #??????# ""#?????????????????? | | ?#! # #??????"" ""?????????????????? | | ?# # ##?????# #?????????????????? | | ?# # ^##?????# #?????????????????? | | ?########## ##?????# "" #?????????????????? | | ??????????# %#??????# " #?????????????????? | | #####?????# #??????# " @" " #?????????????????? | | #?????# #??????# " "" " #?????????????????? | | #?????# #??????# " "? #?????????????????? | | #?????# #??????# """"""??#?????????????????? | | #?????#% #??????# ??????????????????????????? | | #?????# #??????#""??????????????????????????? | | #?????# #???????????????????????????????????? | | #######???# #???????????????????????????????????? | | [ ???# #???????????????????????????????????? | | ??# #???????????????????????????????????? | | ??# #????????BB????BB???????????????????? | | ## ##???????BB????BB???????????????????? | | " # #??????????????????????????????????? | | "" + #??????????????????????????????????? | | """ # #??????????????????????????????????? | | " # #??????????????????????????????????? | | ?# #??????????????????????????????????? | | ?# #??????????????????????????????????? | | ??# ##########?????????????????????????? | | ??# ???????????????????????? | | ########## ???????????????????????? | | ???????????????????????? | | ???????????????????????? | | ########## ##### ????????????????????????? | | #????????? #?????????????????????????????? | +----------------------------------------------------+ Best States ------------- Heat Dissipation 156 Coolant Potential 100 Energy Generation 83 Energy Capacity 2200 Matter Stores 300 Matter Capacity 1050 Sight Range 16 Robot Scan Range 16 Terrain Scan Range 24 Terrain Scan Density 10 Jamming Range 14 Cloak Strength 3 Power Amplification 30 EM Shielding 4 Armor Coverage 2400 Resistance: KI 20 Resistance: I 20 Utility Shielding 66 Weapon Shielding 90 Weapon Cycling 20 Evasion (%) 58 Targeting Accuracy 30 Core Analysis 6 Recoil Reduction 6 Kinecelleration 40 Offensive Hacking 100 Authchip Count 1 Item Schematics ----------------- Huge Storage Unit | -9/Materials | Scanalyzed Hacking Suite | -9/Materials | Scanalyzed Plasma Cutter | -9/Recycling | Hacked Combat Drone Bay | -6/Data Miner | Free Lgt. Regenerative Plating | -6/Data Miner | Free Cld. Gravmag System | -6/Data Miner | Free Exp. Heat Sink | -6/Data Miner | Free Hvy. Gatling Laser | -6/Data Miner | Free Imp. Linear Gravjet | -6/Data Miner | Free Imp. Point Defense System | -6/Data Miner | Free Force Lance | -6/Data Miner | Free Enh. Gauss Cannon | -6/Data Miner | Free Assault Drone Bay | -4/Zhirov | Free Exp. Optical Array | -4/Zhirov | Free Imp. Arc Thrower | -4/Zhirov | Free Robot Schematics ------------------ G-50 Soldier | -6/Data Miner | Free L-41 Fighter | -6/Data Miner | Free R-10 Processor | -6/Data Miner | Free Fabricated ------------ Enh. Nova Cannon | x2 | -2/Testing | Preloaded Repaired ---------- Huge Storage Unit | 43% | -10/Materials Lgt. Treads | 33% | -9/Materials Hardcell Cannon | 44% | -3/Quarantine Alien Tech Used ----------------- Core Expander Integrated Dissipator Core Stripper Dimensional Node Initializer Concept Nanofilaments [Tensile] Transdimensional Reconstructor Achievements -------------- I Was Wrong! Release The Drones! l33t h4x0r Challenges ------------ None Game ------ Seed ArcForceCannon Manual? 0 Play Time 09:08:27 Cumulative 172.5 hours Start 2025.09.26 @ 21:06:06 End 2025.09.30 @ 22:05:30 Sessions 14 Manual Loads 0 Difficulty Rogue Special Mode None Game No. 54 Rogue 48 Adventurer 0 Explorer 6 Win Type 0 Total 10 Types 6/0/2/1/0/0/0/1/0/0 Lore% 75 Gallery% 65 Achievement% 64 Wizard Run 0 Options --------- Layout 1 ASCII 0 Keyboard 0 Movement Mouse Keybinds 0 Fullscreen 2 Font 24/Smallcaps Map View 50x35 Zoom Use 0% Tactical HUD 1 Map Filters NONE Filters NONE Steam 1 RUN: fd16510c-532f-49e9-8be4-5c5d39831c9c